bitfinex-derivatives/quotes_ETHF0:USTF0_20250430
["timestamp","ask_amount","ask_price","bid_price","bid_amount"]
[1746011776096,0.43864557,1809.2,1809.1,1.06532773]
[1746011776498,0.43864557,1809.2,1809.1,0.8606]
[1746011776998,0.43864557,1809.2,1809.1,1.6568]
[1746011777198,0.43874296,1809.2,1809.1,1.6568]
[1746011777498,0.43887739,1809.2,1809.1,1.6568]
[1746011777703,0.43887739,1809.2,1808.7,44.315]
[1746011777902,3.2078,1809.0,1808.9,0.20472773]
[1746011778104,3.64667739,1809.0,1808.9,0.20472773]
[1746011778304,5.30307739,1809.0,1808.7,40.8]
[1746011778605,2.09527739,1808.9,1808.7,42.5146]
[1746011778816,0.43887739,1808.8,1808.7,43.3191]
[1746011779011,0.43887739,1808.8,1808.7,41.80922773]
[1746011779215,0.43887739,1808.8,1808.7,1.00922773]
[1746011781007,0.43942581,1808.8,1808.7,1.00922773]
[1746011781815,1.7033,1809.1,1808.7,1.00922773]
[1746011782015,0.439614,1809.0,1808.7,0.8045]
[1746011782206,0.439614,1808.9,1808.7,0.8045]
[1746011782406,6.7218,1809.2,1809.0,0.20472773]
[1746011782606,6.7218,1809.2,1809.1,0.7946]
[1746011782813,7.16182597,1809.2,1809.1,1.628]
[1746011784617,7.16182597,1809.2,1808.7,3.2078]
[1746011784819,6.7218,1809.2,1809.1,0.20472773]
[1746011785019,7.1618564,1809.2,1809.1,0.20472773]
[1746011785220,7.1618564,1809.2,1808.9,40.8]
[1746011785417,6.7218,1809.2,1809.1,0.20472773]
[1746011785612,7.16202961,1809.2,1808.9,40.8]
[1746011785812,6.7218,1809.2,1809.1,0.20472773]
[1746011786021,7.16203151,1809.2,1808.9,40.8]
[1746011786220,6.7218,1809.2,1809.1,0.20472773]
[1746011786412,7.16203419,1809.2,1809.1,0.20472773]
[1746011786614,3.64800727,1809.2,1809.1,0.20472773]
[1746011788615,3.64793828,1809.2,1809.1,0.20472773]
[1746011788921,0.44013828,1809.2,1809.1,0.20472773]
[1746011789310,0.44013828,1809.2,1809.1,1.03282773]
[1746011792324,0.44006832,1809.2,1809.1,1.03282773]
[1746011794226,0.44005069,1809.2,1809.1,1.03282773]
[1746011795630,0.44005069,1809.2,1809.1,1.82742773]
[1746011797231,6.7218,1809.4,1809.1,1.82742773]
[1746011797428,0.43999536,1809.3,1809.1,1.6227]
[1746011797628,0.43999536,1809.2,1809.1,1.6227]
[1746011798029,0.43999536,1809.2,1809.1,1.82742773]
[1746011800032,6.7218,1809.4,1809.1,1.82742773]
[1746011800233,0.43992616,1809.3,1809.1,1.6227]
[1746011800436,6.7218,1809.4,1809.3,0.20472773]
[1746011800629,0.43986693,1809.4,1809.3,0.20472773]
[1746011802629,3.2078,1809.9,1809.3,3.41252773]
[1746011802834,0.43961074,1809.8,1809.7,0.20472773]
[1746011803533,0.43929843,1809.8,1809.7,0.20472773]
[1746011804228,8.3264,1809.9,1809.7,0.20472773]
[1746011804433,0.43911551,1809.8,1809.7,0.20472773]
[1746011805435,0.43899661,1809.8,1809.7,0.20472773]
[1746011806637,2.08969661,1809.8,1809.7,0.20472773]
[1746011807440,2.08969661,1809.8,1809.5,0.8407]
[1746011807641,2.82829661,1809.7,1809.4,3.2078]
[1746011807938,2.03952608,1809.6,1809.4,3.41252773]
[1746011808142,1.6007,1809.5,1809.4,3.41252773]
[1746011808437,1.6007,1809.5,1809.4,0.20472773]
[1746011810135,2.03973851,1809.5,1809.4,0.20472773]
[1746011810938,2.03973957,1809.5,1809.4,0.20472773]
[1746011812253,2.03973957,1809.5,1809.3,1.5805]
[1746011812538,2.15903957,1809.4,1809.3,1.78522773]
[1746011812741,2.15926805,1809.4,1809.3,1.5805]
[1746011813038,2.15926805,1809.4,1809.3,1.78522773]
[1746011816942,2.15954911,1809.4,1809.3,1.78522773]
[1746011818740,2.15966155,1809.4,1809.3,1.78522773]
[1746011820544,2.15968384,1809.4,1809.3,1.78522773]
[1746011821437,0.43968384,1809.4,1809.3,1.78522773]
[1746011821632,0.43968384,1809.4,1809.3,2.63692773]
[1746011821839,0.43971692,1809.5,1809.3,3.49362773]
[1746011822036,0.43971692,1809.4,1809.3,1.7084]
[1746011822236,7.5084,1809.7,1809.5,0.20472773]
[1746011822441,7.5084,1809.7,1809.6,1.7084]
[1746011822640,7.94807038,1809.7,1809.6,1.7084]
[1746011823644,7.15947038,1809.7,1809.6,1.91312773]
[1746011823845,3.64747038,1809.7,1809.6,1.91312773]
[1746011824037,0.43967038,1809.7,1809.6,1.91312773]
[1746011825643,0.43967491,1809.7,1809.6,1.91312773]
[1746011827642,0.43973722,1809.7,1809.6,1.91312773]
[1746011828038,0.43973722,1809.8,1809.6,1.91312773]
[1746011828238,15.94274362,1810.4,1809.8,0.20472773]
[1746011828448,0.4396955,1810.3,1810.2,0.20472773]
[1746011828947,0.4396955,1810.3,1810.2,41.00472773]
[1746011829339,0.43941231,1810.3,1810.2,41.00472773]
[1746011830746,3.512,1810.4,1810.2,41.00472773]
[1746011830952,9.22294362,1810.5,1810.3,1.00462773]
[1746011831151,9.22294362,1810.5,1810.4,1.04562773]
[1746011831347,9.66173508,1810.5,1810.4,1.04562773]
[1746011831549,9.22294362,1810.5,1810.4,1.04562773]
[1746011831949,0.43850538,1810.5,1810.4,1.04562773]
[1746011832253,2.4271,1810.6,1810.4,1.04562773]
[1746011833753,2.4271,1810.6,1810.5,0.20472773]
[1746011834149,3.511,1810.7,1810.5,0.20472773]
[1746011834353,5.1162,1810.7,1810.5,0.20472773]
[1746011834653,1.6052,1810.7,1810.6,0.20472773]
[1746011834848,2.04293689,1810.7,1810.6,0.20472773]
[1746011835049,2.04293689,1810.7,1810.4,0.8409]
[1746011835251,1.6052,1810.7,1810.6,0.20472773]
[1746011835453,2.04290132,1810.7,1810.4,0.8409]
[1746011835654,1.6052,1810.7,1810.6,0.20472773]
[1746011836454,1.6052,1810.7,1810.4,0.8409]
[1746011836647,1.6052,1810.7,1810.6,0.20472773]
[1746011836851,1.6052,1810.7,1810.4,0.8409]
[1746011837048,1.6052,1810.7,1810.6,0.20472773]
[1746011837250,1.6052,1810.7,1810.4,0.8409]
[1746011837445,1.6052,1810.7,1810.6,0.20472773]
[1746011837645,1.6052,1810.7,1810.4,0.8409]
[1746011837851,1.6052,1810.7,1810.6,0.20472773]
[1746011838358,1.6052,1810.7,1810.4,0.8409]
[1746011838658,1.6052,1810.7,1810.6,0.20472773]
[1746011838858,1.6052,1810.7,1810.4,0.8409]
[1746011839157,1.6052,1810.7,1810.6,0.20472773]
[1746011839354,1.6052,1810.7,1810.4,0.8409]
[1746011839664,1.6052,1810.7,1810.6,0.20472773]
[1746011839958,1.6052,1810.7,1810.4,0.8409]
[1746011840259,1.6052,1810.7,1810.5,0.20472773]
[1746011841055,1.6052,1810.7,1810.6,0.20472773]
[1746011841558,1.6052,1810.7,1810.5,1.7096]
[1746011841760,1.6052,1810.7,1810.6,0.20472773]
[1746011841959,1.6052,1810.7,1810.5,1.7096]
[1746011842160,1.6052,1810.7,1810.6,0.20472773]
[1746011842355,1.6052,1810.7,1810.5,1.7096]
[1746011842659,1.6052,1810.7,1810.6,0.20472773]
[1746011843158,1.6052,1810.7,1810.5,1.7096]
[1746011843461,1.6052,1810.7,1810.6,0.20472773]
[1746011843661,1.6052,1810.7,1810.5,1.7096]
[1746011843861,1.6052,1810.7,1810.6,0.20472773]
[1746011844058,1.6052,1810.7,1810.5,1.7096]
[1746011844363,6.7188,1810.8,1810.6,0.20472773]
[1746011844554,8.39,1810.8,1810.7,1.6157]
[1746011844756,8.82705078,1810.8,1810.7,1.6157]
[1746011845250,8.82709871,1810.8,1810.7,1.6157]
[1746011845659,8.39,1810.8,1810.7,1.6157]
[1746011846059,0.8202,1810.9,1810.7,1.82042773]
[1746011846260,3.2078,1811.0,1810.8,0.20472773]
[1746011846459,3.65678959,1811.6,1810.9,9.40922773]
[1746011846656,0.43702939,1811.5,1811.2,0.20472773]
[1746011846955,1.6712,1811.5,1811.4,0.20472773]
[1746011847151,2.10808087,1811.5,1811.4,41.00472773]
[1746011847356,2.10808087,1811.5,1811.4,40.8]
[1746011847551,1.6712,1811.5,1811.4,40.8]
[1746011848370,1.6712,1811.5,1811.4,41.00472773]
[1746011849563,1.6712,1811.5,1811.4,40.8]
[1746011850161,3.2078,1811.8,1811.4,41.00472773]
[1746011850366,3.2078,1812.3,1812.0,0.20472773]
[1746011850661,1.7432,1812.2,1812.1,0.20472773]
[1746011850864,12.43074362,1812.5,1812.1,3.71372773]
[1746011851056,12.43074362,1812.5,1812.3,0.20472773]
[1746011851257,12.43074362,1812.5,1812.2,5.29672773]
[1746011851464,3.2078,1812.3,1812.2,5.092]
[1746011851958,3.2078,1812.3,1812.2,46.09672773]
[1746011852163,9.22294362,1812.5,1812.2,46.09672773]
[1746011852367,9.22294362,1812.5,1812.4,0.20472773]
[1746011852860,9.22294362,1812.5,1812.4,5.20472773]
[1746011853265,11.06753234,1812.7,1812.4,11.47892773]
[1746011853571,6.4221016,1812.8,1812.7,0.20472773]
[1746011853861,6.4221016,1812.8,1812.7,3.71272773]
[1746011854169,4.22104524,1812.8,1812.7,5.76042773]
[1746011854368,5.21899728,1813.3,1812.7,5.76042773]
[1746011854662,4.7865,1813.1,1812.8,0.20472773]
[1746011854869,4.7865,1813.1,1812.8,3.71172773]
[1746011855062,3.2078,1813.3,1812.8,3.71172773]
[1746011855262,3.2078,1813.3,1812.9,1.93242773]
[1746011855465,1.5787,1813.2,1812.9,1.93242773]
[1746011855662,3.2078,1813.1,1812.9,1.93242773]
[1746011855869,1.5787,1813.0,1812.9,1.7277]
[1746011856666,3.2078,1813.1,1812.9,1.7277]
[1746011856869,3.2078,1813.1,1813.0,0.20472773]
[1746011857568,3.2078,1813.1,1813.0,1.87362773]
[1746011858071,3.2078,1813.1,1813.0,5.70162773]
[1746011858274,3.63985699,1813.3,1813.0,5.70162773]
[1746011858575,3.63985699,1813.3,1813.1,3.71072773]
[1746011858775,1.6105,1813.2,1813.1,3.506]
[1746011860475,1.6105,1813.2,1813.0,3.506]
[1746011860775,3.2078,1813.1,1813.0,3.506]
[1746011861276,4.7996,1813.1,1813.0,3.506]
[1746011861682,4.7996,1813.1,1812.7,1.6006]
[1746011861876,4.7996,1813.1,1812.9,0.20472773]
[1746011862066,4.7996,1813.1,1813.0,0.20472773]
[1746011862577,4.7996,1813.1,1812.9,1.6006]
[1746011862879,4.7996,1813.1,1813.0,0.20472773]
[1746011863068,4.7996,1813.1,1812.9,1.6006]
[1746011863376,3.2078,1813.1,1813.0,0.20472773]
[1746011864076,3.2078,1813.1,1813.0,1.80322773]
[1746011864480,3.63985699,1813.3,1813.0,1.80322773]
[1746011864676,0.43205699,1813.3,1813.2,0.20472773]
[1746011864876,4.8863,1813.5,1813.2,0.20472773]
[1746011865178,4.8863,1813.5,1813.3,1.80322773]
[1746011865578,5.33365816,1813.5,1813.3,1.80322773]
[1746011866178,5.33365816,1813.5,1813.1,3.505]
[1746011866377,5.33365816,1813.5,1813.3,0.20472773]
[1746011866581,5.33365816,1813.5,1813.2,3.505]
[1746011866881,5.33365816,1813.5,1813.3,0.20472773]
[1746011867082,5.33365816,1813.5,1813.3,1.80882773]
[1746011867380,5.33365816,1813.5,1813.4,0.20472773]
[1746011868682,5.33365816,1813.5,1813.3,1.6041]
[1746011868876,5.33365816,1813.5,1813.4,0.20472773]
[1746011869278,3.65515816,1813.5,1813.3,1.6041]
[1746011869478,3.65515816,1813.5,1813.4,0.20472773]
[1746011870084,3.65515816,1813.5,1813.4,1.92702773]
[1746011870287,3.65515816,1813.5,1813.4,42.72702773]
[1746011870684,3.65515816,1813.5,1813.4,40.8]
[1746011870884,3.65515816,1813.5,1813.3,0.8529]
[1746011871086,1.7364,1813.4,1813.3,0.8529]
[1746011871283,1.7364,1813.4,1813.3,3.504]
[1746011871483,1.7364,1813.4,1813.1,44.304]
[1746011871785,2.5377,1813.4,1813.1,41.00472773]
[1746011871982,2.5377,1813.4,1813.1,46.24252773]
[1746011872383,3.2078,1813.2,1813.1,5.44252773]
[1746011872582,5.7455,1813.4,1813.0,3.504]
[1746011872777,5.7455,1813.4,1813.1,0.20472773]
[1746011873185,0.8549,1813.3,1813.0,44.304]
[1746011873387,1.7203,1813.2,1813.1,0.20472773]
[1746011874390,1.7203,1813.2,1813.0,44.304]
[1746011874688,1.7203,1813.2,1813.1,0.20472773]
[1746011874881,1.7203,1813.2,1813.0,44.304]
[1746011875082,1.7203,1813.2,1813.1,0.20472773]
[1746011875485,9.9281,1813.2,1812.8,0.8529]
[1746011875685,3.2078,1813.0,1812.8,1.05762773]
[1746011876077,3.2078,1813.0,1812.9,1.6444]
[1746011877289,3.2078,1813.0,1812.6,3.576]
[1746011877585,2.5731,1812.9,1812.7,0.20472773]
[1746011877789,1.7014,1812.9,1812.8,0.20472773]
[1746011879290,3.2078,1813.0,1812.8,0.20472773]
[1746011879491,3.2078,1813.0,1812.9,0.20472773]
[1746011879883,3.2078,1813.0,1812.7,1.5827]
[1746011880082,3.2078,1813.0,1812.9,0.20472773]
[1746011880291,3.2078,1813.0,1812.8,0.20472773]
[1746011880489,1.661,1812.9,1812.8,0.20472773]
[1746011882690,3.2078,1813.0,1812.8,0.20472773]
[1746011882879,3.2078,1813.0,1812.9,1.89782773]
[1746011883279,3.2078,1813.0,1812.9,1.6931]
[1746011883691,3.2078,1813.0,1812.6,3.576]
[1746011883893,1.7132,1812.9,1812.8,0.20472773]
[1746011884393,1.7132,1812.9,1812.8,41.00472773]
[1746011884691,1.7132,1812.9,1812.8,0.20472773]
[1746011884896,3.2078,1813.0,1812.8,0.20472773]
[1746011885090,3.2078,1813.0,1812.9,1.88502773]
[1746011885399,3.2078,1813.0,1812.9,2.75312773]
[1746011885992,3.2078,1813.0,1812.9,43.55312773]
[1746011886190,3.2078,1813.0,1812.9,47.38112773]
[1746011887993,3.2078,1813.0,1812.9,3.828]
[1746011888195,3.2078,1813.0,1812.7,5.316]
[1746011888389,1.606,1812.9,1812.8,0.20472773]
[1746011893491,1.606,1812.9,1812.3,3.2078]
[1746011893691,3.2078,1812.8,1812.6,0.20472773]
[1746011893895,1.6843,1812.7,1812.6,0.20472773]
[1746011894195,1.6843,1812.7,1812.4,4.4331]
[1746011894389,1.6843,1812.7,1812.6,0.20472773]
[1746011894590,1.6843,1812.7,1812.4,4.4331]
[1746011894894,1.6843,1812.7,1812.6,0.20472773]
[1746011895094,1.6843,1812.7,1812.4,4.4331]
[1746011895095,1.6843,1812.7,1812.4,0.8561]
[1746011895290,1.6843,1812.7,1812.6,0.20472773]
[1746011896399,1.6843,1812.7,1812.4,4.6841]
[1746011896601,1.6843,1812.7,1812.6,0.20472773]
[1746011896897,5.2613,1812.7,1812.4,3.828]
[1746011897098,3.2078,1812.5,1812.4,3.62327227]
[1746011897298,3.2078,1812.5,1812.1,1.6787]
[1746011897498,3.2078,1812.3,1812.2,0.20472773]
[1746011897994,2.5201,1812.4,1812.2,0.20472773]
[1746011898300,1.7296,1812.4,1812.3,0.20472773]
[1746011899300,1.7296,1812.4,1812.2,1.6253]
[1746011899498,1.7296,1812.4,1812.3,0.20472773]
[1746011899897,1.7296,1812.4,1812.2,1.6253]
[1746011900205,1.7296,1812.4,1812.3,0.20472773]
[1746011901099,1.7296,1812.4,1811.9,51.35487839]
[1746011901302,3.2078,1812.3,1812.2,0.20472773]
[1746011901801,3.2078,1812.3,1812.0,1.6253]
[1746011902002,3.2078,1812.3,1812.2,0.20472773]
[1746011902200,3.2078,1812.3,1812.0,1.6253]
[1746011902402,3.2078,1812.3,1812.2,0.20472773]
[1746011902601,3.2078,1812.3,1812.0,1.6253]
[1746011902803,3.2078,1812.3,1812.2,0.20472773]
[1746011903105,3.2078,1812.3,1812.0,1.6253]
[1746011903293,1.7315,1812.2,1812.1,0.20472773]
[1746011904093,1.7315,1812.2,1812.0,1.6253]
[1746011904298,1.7315,1812.2,1812.1,0.20472773]
[1746011904701,1.7315,1812.2,1812.0,1.6253]
[1746011904900,1.7315,1812.2,1812.1,0.20472773]
[1746011905101,1.7315,1812.2,1812.0,1.6253]
[1746011905301,1.7315,1812.2,1812.1,0.20472773]
[1746011905704,1.7315,1812.2,1812.0,1.6253]
[1746011905905,2.5952,1812.2,1812.1,0.20472773]
[1746011906401,2.5952,1812.2,1812.0,1.6253]
[1746011906600,1.7071,1812.1,1812.0,1.6253]
[1746011906906,4.9149,1812.1,1811.9,0.8523]
[1746011907100,4.9149,1812.1,1811.9,2.68832773]
[1746011907505,1.7071,1812.0,1811.9,2.68832773]
[1746011908401,1.7071,1812.0,1811.9,0.20472773]
[1746011908607,1.7071,1812.0,1811.8,41.6544]
[1746011908906,1.7071,1812.0,1811.9,0.20472773]
[1746011909107,1.7071,1812.0,1811.9,1.7392]
[1746011909506,1.7071,1812.0,1811.8,0.8544]
[1746011909810,1.7071,1812.0,1811.8,0.20472773]
[1746011910009,2.5532,1812.0,1811.8,0.20472773]
[1746011910210,2.5532,1812.0,1811.8,1.94392773]
[1746011912307,1.5777,1811.9,1811.8,1.94392773]
[1746011912812,1.5777,1811.9,1811.8,1.7392]
[1746011913011,1.5777,1811.9,1811.7,0.8663]
[1746011913211,1.5777,1811.9,1811.7,2.80682773]
[1746011913715,1.5777,1811.9,1811.8,1.7358]
[1746011917313,3.2078,1812.1,1811.8,1.94052773]
[1746011917517,4.7814,1812.1,1811.8,1.94052773]
[1746011919609,1.5736,1812.0,1811.8,1.94052773]
[1746011922618,3.2078,1812.1,1811.9,0.20472773]
[1746011922806,3.2078,1812.1,1812.0,1.78782773]
[1746011923007,3.2078,1812.1,1812.0,2.58162773]
[1746011923211,3.2078,1812.1,1812.0,2.3769]
[1746011923714,3.2078,1812.1,1812.0,2.58162773]
[1746011926518,3.2078,1812.1,1812.0,1.5831]
[1746011926817,4.8255,1812.1,1812.0,1.5831]
[1746011929824,4.8255,1812.1,1811.9,0.8658]
[1746011930122,1.7259,1812.0,1811.9,0.8658]
[1746011930620,1.7259,1812.0,1811.9,1.07052773]
[1746011932917,1.7259,1812.0,1811.8,1.7417]
[1746011933118,2.5167,1812.0,1811.9,0.20472773]
[1746011934125,2.5167,1812.0,1811.8,1.7417]
[1746011934926,5.7245,1812.0,1811.8,1.7417]
[1746011936729,1.6484,1811.9,1811.8,1.7417]
[1746011937125,3.9986,1812.0,1811.9,0.20472773]
[1746011937326,3.2078,1812.0,1811.9,0.20472773]
[1746011937528,3.2078,1812.0,1811.8,1.7417]
[1746011937826,3.2078,1812.0,1811.9,0.20472773]
[1746011938023,3.2078,1812.0,1811.8,1.7417]
[1746011938218,3.2078,1812.0,1811.9,0.20472773]
[1746011938420,3.64048597,1812.0,1811.8,1.7417]
[1746011938724,3.2078,1812.0,1811.9,0.20472773]
[1746011938916,3.64049063,1812.0,1811.9,0.20472773]
[1746011939114,3.64049063,1812.0,1811.8,1.7417]
[1746011939325,3.2078,1812.0,1811.9,0.20472773]
[1746011939525,3.64048634,1812.0,1811.9,0.20472773]
[1746011939726,3.64048634,1812.0,1811.8,1.7417]
[1746011939927,3.2078,1812.0,1811.9,0.20472773]
[1746011940128,3.64048843,1812.0,1811.7,1.6092]
[1746011940328,2.97858843,1811.9,1811.8,0.20472773]
[1746011940524,2.97858843,1811.9,1811.7,3.2138]
[1746011940830,0.43268843,1811.8,1811.7,3.2138]
[1746011941022,0.43268843,1811.8,1811.7,1.6092]
[1746011941319,0.43268843,1811.8,1811.7,1.81392773]
[1746011941724,0.43267607,1811.8,1811.7,1.81392773]
[1746011943629,0.43263768,1811.8,1811.7,1.81392773]
[1746011945426,2.13998745,1811.8,1811.7,1.81392773]
[1746011946829,0.43258745,1811.8,1811.7,1.81392773]
[1746011949432,2.06968745,1811.8,1811.7,1.81392773]
[1746011951133,2.06959331,1811.8,1811.7,1.81392773]
[1746011952435,2.06955205,1811.8,1811.7,1.81392773]
[1746011953035,2.06955878,1811.8,1811.7,1.81392773]
[1746011956633,5.27735878,1811.8,1811.3,7.34707839]
[1746011956835,3.89178441,1811.7,1811.5,0.20472773]
[1746011957135,5.38318441,1811.6,1811.5,0.20472773]
[1746011957324,5.38318441,1811.6,1811.4,0.8648]
[1746011957528,4.9505,1811.6,1811.5,0.20472773]
[1746011957729,5.38300963,1811.6,1811.4,0.8648]
[1746011958035,8.4925,1811.6,1811.5,0.20472773]
[1746011958339,8.92500943,1811.6,1811.5,0.20472773]
[1746011958526,8.92500943,1811.6,1811.4,0.8648]
[1746011958733,2.17760943,1811.5,1811.4,0.8648]
[1746011959239,2.17760943,1811.5,1811.3,8.13807839]
[1746011959435,5.38540943,1811.4,1811.2,0.8418]
[1746011959636,4.9529,1811.4,1811.3,0.20472773]
[1746011959825,5.38516762,1811.4,1811.2,1.6875]
[1746011960032,4.9529,1811.4,1811.3,0.20472773]
[1746011960226,5.38517185,1811.4,1811.2,1.6875]
[1746011960429,4.9529,1811.4,1811.3,0.20472773]
[1746011960638,5.46022068,1811.4,1811.3,1.6295]
[1746011962540,0.50707318,1811.4,1811.3,1.83422773]
[1746011964332,0.50707318,1811.4,1811.3,5.66222773]
[1746011967940,0.50707318,1811.4,1811.3,10.66222773]
[1746011968141,0.50713798,1811.4,1811.3,10.66222773]
[1746011970048,0.50715905,1811.4,1811.3,10.66222773]
[1746011970649,0.50715905,1811.4,1811.3,5.66222773]
[1746011971951,0.50720485,1811.4,1811.3,5.66222773]
[1746011972455,0.50720485,1811.4,1811.3,46.46222773]
[1746011973453,0.50720485,1811.4,1811.3,5.4575]
[1746011974058,2.20270485,1811.4,1811.3,5.4575]
[1746011974258,2.20270485,1811.4,1811.3,1.6295]
[1746011975061,0.50720485,1811.4,1811.3,1.6295]
[1746011975656,0.50729989,1811.4,1811.3,1.6295]
[1746011977361,2.13879989,1811.4,1811.3,1.6295]
[1746011977563,2.13878069,1811.4,1811.3,1.6295]
[1746011978262,2.13884419,1811.4,1811.3,1.6295]
[1746011978459,1.70669169,1811.4,1811.3,1.6295]
[1746011978959,2.13884391,1811.4,1811.3,1.6295]
[1746011979265,2.13885335,1811.4,1811.3,1.6295]
[1746011979561,2.13888226,1811.4,1811.3,1.6295]
[1746011979763,2.13888223,1811.4,1811.3,1.6295]
[1746011979961,1.70669169,1811.4,1811.3,1.6295]
[1746011980163,2.13888249,1811.4,1811.3,1.6295]
[1746011980364,2.13891611,1811.4,1811.3,1.6295]
[1746011980764,1.70669169,1811.4,1811.3,1.6295]
[1746011980965,2.13891597,1811.4,1811.3,1.6295]
[1746011981158,2.13890998,1811.4,1811.3,1.6295]
[1746011981357,5.34670998,1811.4,1811.3,1.6295]
[1746011982059,4.91449169,1811.4,1811.3,1.6295]
[1746011982266,5.34675816,1811.4,1811.3,1.6295]
[1746011982461,2.13895816,1811.4,1811.3,1.6295]
[1746011982661,5.34682302,1811.4,1811.3,1.6295]
[1746011984367,5.34696788,1811.4,1811.3,1.6295]
[1746011986367,5.34717467,1811.4,1811.3,1.6295]
[1746011986564,5.34717467,1811.4,1811.2,1.6875]
[1746011986865,4.91449169,1811.4,1811.3,0.20472773]
[1746011987067,5.34718126,1811.4,1811.2,1.6875]
[1746011987262,4.91449169,1811.4,1811.3,0.20472773]
[1746011987561,5.3471718,1811.4,1811.2,1.6875]
[1746011987758,4.91449169,1811.4,1811.3,1.93942773]
[1746011987958,5.34717196,1811.4,1811.3,1.93942773]
[1746011988170,5.34715947,1811.4,1811.3,1.7347]
[1746011989767,3.71565947,1811.4,1811.3,1.93942773]
[1746011989962,3.28299169,1811.4,1811.3,1.93942773]
[1746011990266,0.50779674,1811.4,1811.3,10.76742773]
[1746011991271,0.50779674,1811.4,1811.3,5.76742773]
[1746011993773,0.50767387,1811.4,1811.3,5.76742773]
[1746011998076,0.50759375,1811.4,1811.3,5.76742773]
[1746011999371,0.07519169,1811.4,1811.3,5.76742773]
[1746011999564,0.50753992,1811.4,1811.3,5.76742773]
[1746012001075,0.50754275,1811.4,1811.3,5.76742773]
[1746012008176,0.50758592,1811.4,1811.3,5.76742773]
[1746012010085,0.07519169,1811.4,1811.3,10.76742773]
[1746012012184,0.07519169,1811.4,1811.3,5.76742773]
[1746012012583,0.07519169,1811.4,1811.3,13.11450612]
[1746012014681,0.07519169,1811.4,1811.3,27.14226442]
[1746012015284,4.8616,1811.9,1811.3,27.14226442]
[1746012015486,2.0224966,1811.8,1811.6,0.20472773]
[1746012015782,1.5903,1811.8,1811.7,1.7407]
[1746012016084,2.02246711,1811.8,1811.7,1.7407]
[1746012016882,2.02246711,1811.8,1811.6,1.6619]
[1746012017081,2.02246711,1811.7,1811.6,3.4026]
[1746012017583,2.02255326,1811.7,1811.6,3.4026]
[1746012017781,0.43225326,1811.7,1811.6,3.60732773]
[1746012018084,3.2078,1812.1,1811.6,14.50932773]
[1746012018283,3.2078,1812.1,1812.0,0.20472773]
[1746012018585,3.64000678,1812.1,1812.0,0.20472773]
[1746012019385,3.64000678,1812.1,1811.9,3.3406]
[1746012019585,3.2078,1812.1,1812.0,40.8]
[1746012019778,4.4759615,1812.1,1812.0,40.8]
[1746012020587,9.4759615,1812.1,1812.0,40.8]
[1746012020886,4.4759615,1812.1,1812.0,40.8]
[1746012021188,4.4759615,1812.1,1811.8,4.3148]
[1746012021491,0.4317615,1812.0,1811.8,4.51952773]
[1746012021680,0.4317615,1811.9,1811.8,4.51952773]
[1746012021990,0.4317615,1811.9,1811.6,18.49395464]
[1746012022185,1.2521615,1811.8,1811.7,41.00472773]
[1746012022487,1.2521615,1811.8,1811.7,40.8]
[1746012023181,1.2521615,1811.8,1811.7,44.628]
[1746012023376,1.25200461,1811.8,1811.7,44.628]
[1746012024086,1.25200461,1811.8,1811.7,40.8]
[1746012024287,1.25200461,1811.8,1811.6,2.5701]
[1746012024487,0.43160461,1811.7,1811.6,2.77482773]
[1746012024680,0.5067963,1811.7,1811.6,2.5701]
[1746012024880,0.07519169,1811.7,1811.6,43.57482773]
[1746012027283,0.50683994,1811.7,1811.6,43.57482773]
[1746012028890,0.50689866,1811.7,1811.6,43.57482773]
[1746012029589,0.07519169,1811.7,1811.6,43.57482773]
[1746012032785,0.50697086,1811.7,1811.6,43.57482773]
[1746012033091,0.07519169,1811.7,1811.6,43.57482773]
[1746012033788,0.50700426,1811.7,1811.6,43.57482773]
[1746012034193,0.07519169,1811.7,1811.6,43.57482773]
[1746012035090,0.50705566,1811.7,1811.6,43.57482773]
[1746012036497,0.50709976,1811.7,1811.6,43.57482773]
[1746012036793,0.50709976,1811.7,1811.6,42.5349]
[1746012038292,0.50709976,1811.7,1811.6,42.73962773]
[1746012039997,0.50709976,1811.7,1811.6,42.5349]
[1746012040199,0.50752915,1811.7,1811.6,42.5349]
[1746012040699,2.17502915,1811.7,1811.6,42.5349]
[1746012045004,2.17502915,1811.7,1811.6,42.73962773]
[1746012045803,1.74269169,1811.7,1811.6,42.73962773]
[1746012046004,2.17507172,1811.7,1811.6,42.73962773]
[1746012047098,2.17507172,1811.7,1811.6,1.93962773]
[1746012047301,2.17507172,1811.7,1811.5,7.0358]
[1746012047496,2.15068003,1811.6,1811.5,7.0358]
[1746012047691,2.22587172,1811.6,1811.5,7.0358]
[1746012047996,2.22587172,1811.6,1811.5,8.85942773]
[1746012050502,2.22587172,1811.6,1811.5,5.65162773]
[1746012051505,2.22609898,1811.6,1811.5,5.65162773]
[1746012052304,0.50779898,1811.6,1811.5,5.65162773]
[1746012053505,0.50777218,1811.6,1811.5,5.65162773]
[1746012055307,0.50767685,1811.6,1811.5,5.65162773]
[1746012057201,0.50768689,1811.6,1811.5,5.65162773]
[1746012060816,0.50771469,1811.6,1811.5,5.65162773]
[1746012062210,0.50772728,1811.6,1811.5,5.65162773]
[1746012063105,0.50772728,1811.6,1811.5,46.45162773]
[1746012065910,0.07519169,1811.6,1811.5,46.45162773]
[1746012066104,0.50781256,1811.6,1811.5,46.45162773]
[1746012068119,0.50781256,1811.6,1811.5,46.2469]
[1746012068517,2.10841256,1811.6,1811.5,46.2469]
[1746012069720,2.10850458,1811.6,1811.5,46.2469]
[1746012069921,2.10850459,1811.6,1811.5,46.2469]
[1746012075322,1.67579169,1811.6,1811.5,46.2469]
[1746012075522,2.10850392,1811.6,1811.5,46.2469]
[1746012075725,0.50790392,1811.6,1811.5,46.45162773]
[1746012077230,0.50784994,1811.6,1811.5,46.45162773]
[1746012078430,0.50784615,1811.6,1811.5,46.45162773]
[1746012079230,0.50785448,1811.6,1811.5,46.45162773]
[1746012080730,0.07519169,1811.6,1811.5,46.45162773]
[1746012081432,0.5078798,1811.6,1811.5,46.45162773]
[1746012084930,0.50791457,1811.6,1811.5,46.45162773]
[1746012086832,0.50796043,1811.6,1811.5,46.45162773]
[1746012088629,0.50796043,1811.6,1811.5,5.4469]
[1746012088832,8.71579981,1811.6,1811.5,3.828]
[1746012089226,10.36569981,1811.6,1811.3,7.30453554]